[Event "Titled Tuesday Blitz April 18 Early 2023"]
[White "Munoz, Francisco Javier"]
[Black "Bharath Subramaniyam H"]
[WhiteFideId "128368"]
[BlackFideId "46634827"]
[WhiteElo "2383"]
[BlackElo "2395"]
[Result "1/2-1/2"]
[Round "03"]
[TimeControl "180+2"]
[Date "2023.04.18"]
[WhiteClock "0:00:09"]
[BlackClock "0:00:02"]

1. e4 {[%clk 0:03:00]}  c5 {[%clk 0:02:53]} 2. c3 {[%clk 0:03:01]}  Nf6 {[%clk 0:02:51]} 3. e5 {[%clk 0:03:01]}  Nd5 {[%clk 0:02:52]} 4. d4 {[%clk 0:03:02]}  cxd4 {[%clk 0:02:53]} 5. Nf3 {[%clk 0:03:02]}  d6 {[%clk 0:02:53]} 6. exd6 {[%clk 0:03:00]}  Qxd6 {[%clk 0:02:51]} 7. cxd4 {[%clk 0:03:00]}  g6 {[%clk 0:02:50]} 8. Nc3 {[%clk 0:02:58]}  Nxc3 {[%clk 0:02:48]} 9. bxc3 {[%clk 0:02:58]}  Bg7 {[%clk 0:02:48]} 10. h3 {[%clk 0:02:52]}  O-O {[%clk 0:02:47]} 11. Bd3 {[%clk 0:02:52]}  b6 {[%clk 0:02:43]} 12. O-O {[%clk 0:02:51]}  Bb7 {[%clk 0:02:43]} 13. a4 {[%clk 0:02:51]}  Nc6 {[%clk 0:02:43]} 14. Re1 {[%clk 0:02:51]}  Qc7 {[%clk 0:02:41]} 15. Bg5 {[%clk 0:02:41]}  Rfe8 {[%clk 0:02:39]} 16. Bh4 {[%clk 0:02:38]}  Rad8 {[%clk 0:02:37]} 17. Qd2 {[%clk 0:02:01]}  Na5 {[%clk 0:02:33]} 18. Bg3 {[%clk 0:01:57]}  Qc8 {[%clk 0:02:28]} 19. Ne5 {[%clk 0:01:42]}  Nb3 {[%clk 0:02:03]} 20. Qa2 {[%clk 0:01:36]}  Bd5 {[%clk 0:01:56]} 21. c4 {[%clk 0:01:28]}  Nxa1 {[%clk 0:01:37]} 22. cxd5 {[%clk 0:01:27]}  Bxe5 {[%clk 0:01:37]} 23. dxe5 {[%clk 0:01:10]}  Qc3 {[%clk 0:01:37]} 24. Re3 {[%clk 0:00:42]}  Nb3 {[%clk 0:01:10]} 25. Bf1 {[%clk 0:00:31]}  Nc1 {[%clk 0:01:06]} 26. Qb1 {[%clk 0:00:25]}  Qc5 {[%clk 0:01:03]} 27. Re1 {[%clk 0:00:08]}  Rc8 {[%clk 0:00:56]} 28. e6 {[%clk 0:00:07]}  Qc3 {[%clk 0:00:41]} 29. exf7+ {[%clk 0:00:06]}  Kxf7 {[%clk 0:00:40]} 30. Re3 {[%clk 0:00:06]}  Qc2 {[%clk 0:00:36]} 31. Qb5 {[%clk 0:00:06]}  Na2 {[%clk 0:00:31]} 32. Rf3+ {[%clk 0:00:06]}  Kg8 {[%clk 0:00:31]} 33. d6 {[%clk 0:00:06]}  exd6 {[%clk 0:00:23]} 34. Qd5+ {[%clk 0:00:05]}  Kh8 {[%clk 0:00:23]} 35. Bxd6 {[%clk 0:00:06]}  Qb2 {[%clk 0:00:23]} 36. Re3 {[%clk 0:00:04]}  Nb4 {[%clk 0:00:10]} 37. Be5+ {[%clk 0:00:03]}  Rxe5 {[%clk 0:00:10]} 38. Qxe5+ {[%clk 0:00:04]}  Qxe5 {[%clk 0:00:10]} 39. Rxe5 {[%clk 0:00:05]}  Rc1 {[%clk 0:00:09]} 40. g3 {[%clk 0:00:04]}  Ra1 {[%clk 0:00:03]} 41. Re8+ {[%clk 0:00:04]}  Kg7 {[%clk 0:00:04]} 42. Re7+ {[%clk 0:00:04]}  Kh6 {[%clk 0:00:05]} 43. Rxa7 {[%clk 0:00:05]}  Nd5 {[%clk 0:00:05]} 44. Kg2 {[%clk 0:00:05]}  Nc3 {[%clk 0:00:05]} 45. Ra6 {[%clk 0:00:04]}  Ra2 {[%clk 0:00:04]} 46. Rxb6 {[%clk 0:00:02]}  Ne4 {[%clk 0:00:04]} 47. h4 {[%clk 0:00:01]}  Rxf2+ {[%clk 0:00:04]} 48. Kg1 {[%clk 0:00:02]}  Ra2 {[%clk 0:00:04]} 49. Rb4 {[%clk 0:00:02]}  Nxg3 {[%clk 0:00:04]} 50. Bg2 {[%clk 0:00:02]}  Ne2+ {[%clk 0:00:03]} 51. Kh2 {[%clk 0:00:03]}  Nc3 {[%clk 0:00:03]} 52. Rc4 {[%clk 0:00:03]}  Nxa4 {[%clk 0:00:03]} 53. Kh3 {[%clk 0:00:04]}  Nb6 {[%clk 0:00:03]} 54. Rc6 {[%clk 0:00:05]}  Nd5 {[%clk 0:00:04]} 55. Bxd5 {[%clk 0:00:04]}  Ra3+ {[%clk 0:00:03]} 56. Kg4 {[%clk 0:00:04]}  Ra4+ {[%clk 0:00:03]} 57. Kg3 {[%clk 0:00:05]}  Ra3+ {[%clk 0:00:03]} 58. Bf3 {[%clk 0:00:06]}  Rd3 {[%clk 0:00:03]} 59. Rc4 {[%clk 0:00:06]}  Re3 {[%clk 0:00:03]} 60. Rc5 {[%clk 0:00:07]}  Re6 {[%clk 0:00:04]} 61. Rg5 {[%clk 0:00:07]}  Rf6 {[%clk 0:00:04]} 62. Rg4 {[%clk 0:00:08]}  Rf5 {[%clk 0:00:04]} 63. Re4 {[%clk 0:00:09]}  Ra5 {[%clk 0:00:05]} 64. Rg4 {[%clk 0:00:09]}  Re5 {[%clk 0:00:05]} 65. Rb4 {[%clk 0:00:10]}  Rc5 {[%clk 0:00:06]} 66. Rb7 {[%clk 0:00:10]}  Re5 {[%clk 0:00:06]} 67. Rd7 {[%clk 0:00:10]}  Rc5 {[%clk 0:00:07]} 68. Kf4 {[%clk 0:00:11]}  Rc4+ {[%clk 0:00:07]} 69. Be4 {[%clk 0:00:11]}  Rc1 {[%clk 0:00:07]} 70. Rd8 {[%clk 0:00:11]}  Rf1+ {[%clk 0:00:07]} 71. Kg3 {[%clk 0:00:11]}  Rg1+ {[%clk 0:00:08]} 72. Kf4 {[%clk 0:00:12]}  Rf1+ {[%clk 0:00:08]} 73. Ke5 {[%clk 0:00:12]}  Kh5 {[%clk 0:00:07]} 74. Rh8 {[%clk 0:00:12]}  Rf7 {[%clk 0:00:06]} 75. Ke6 {[%clk 0:00:10]}  Rf4 {[%clk 0:00:06]} 76. Rxh7+ {[%clk 0:00:08]}  Kg4 {[%clk 0:00:06]} 77. Bxg6 {[%clk 0:00:09]}  Ra4 {[%clk 0:00:06]} 78. h5 {[%clk 0:00:09]}  Kg5 {[%clk 0:00:07]} 79. Kf7 {[%clk 0:00:09]}  Ra7+ {[%clk 0:00:07]} 80. Kg8 {[%clk 0:00:10]}  Ra8+ {[%clk 0:00:07]} 81. Kg7 {[%clk 0:00:10]}  Ra6 {[%clk 0:00:06]} 82. Bf7 {[%clk 0:00:10]}  Rf6 {[%clk 0:00:03]} 83. Rh8 {[%clk 0:00:09]}  Ra6 {[%clk 0:00:04]} 84. h6 {[%clk 0:00:10]}  Rf6 {[%clk 0:00:02]} 85. Rg8 {[%clk 0:00:10]}  Rxh6 {[%clk 0:00:02]} 86. Kf8+ {[%clk 0:00:08]}  Kf6 {[%clk 0:00:02]} 87. Rg6+ {[%clk 0:00:08]}  Rxg6 {[%clk 0:00:02]} 88. Bxg6 {[%clk 0:00:09]} 1/2-1/2


[Site "https://www.chess.com"]

[Event "Titled Tuesday Blitz April 18 Early 2023"]
[White "Licznerski, Lukasz"]
[Black "Taichman, Ori"]
[WhiteFideId "1179250"]
[BlackFideId "2804069"]
[WhiteElo "2450"]
[BlackElo "2237"]
[Result "1-0"]
[Round "03"]
[TimeControl "180+2"]
[Date "2023.04.18"]
[WhiteClock "0:00:45"]
[BlackClock "0:00:04"]

1. e4 {[%clk 0:03:00]}  c5 {[%clk 0:02:59]} 2. Nf3 {[%clk 0:03:00]}  Nc6 {[%clk 0:03:00]} 3. Bb5 {[%clk 0:02:56]}  d6 {[%clk 0:03:00]} 4. O-O {[%clk 0:02:51]}  Bd7 {[%clk 0:03:00]} 5. Re1 {[%clk 0:02:52]}  Nf6 {[%clk 0:03:00]} 6. c3 {[%clk 0:02:50]}  a6 {[%clk 0:03:00]} 7. Bf1 {[%clk 0:02:50]}  Bg4 {[%clk 0:03:01]} 8. h3 {[%clk 0:02:50]}  Bxf3 {[%clk 0:03:01]} 9. Qxf3 {[%clk 0:02:51]}  g6 {[%clk 0:03:02]} 10. d3 {[%clk 0:02:51]}  Bg7 {[%clk 0:03:02]} 11. Be3 {[%clk 0:02:52]}  Nd7 {[%clk 0:03:02]} 12. Nd2 {[%clk 0:02:52]}  b5 {[%clk 0:03:02]} 13. Qd1 {[%clk 0:02:50]}  b4 {[%clk 0:03:00]} 14. Qc2 {[%clk 0:02:45]}  O-O {[%clk 0:02:38]} 15. Nf3 {[%clk 0:02:44]}  Nde5 {[%clk 0:02:38]} 16. Nxe5 {[%clk 0:02:44]}  Bxe5 {[%clk 0:02:37]} 17. Red1 {[%clk 0:02:42]}  Qb6 {[%clk 0:02:34]} 18. Qd2 {[%clk 0:02:32]}  Bg7 {[%clk 0:02:05]} 19. d4 {[%clk 0:02:31]}  Rfd8 {[%clk 0:02:01]} 20. a3 {[%clk 0:02:14]}  bxc3 {[%clk 0:01:51]} 21. bxc3 {[%clk 0:02:14]}  Qa5 {[%clk 0:01:46]} 22. Rdb1 {[%clk 0:01:50]}  cxd4 {[%clk 0:01:43]} 23. cxd4 {[%clk 0:01:50]}  Qxd2 {[%clk 0:01:43]} 24. Bxd2 {[%clk 0:01:51]}  Nxd4 {[%clk 0:01:42]} 25. Ra2 {[%clk 0:01:49]}  Nb5 {[%clk 0:01:31]} 26. Bxb5 {[%clk 0:01:43]}  axb5 {[%clk 0:01:32]} 27. Rxb5 {[%clk 0:01:44]}  Rdc8 {[%clk 0:01:20]} 28. a4 {[%clk 0:01:39]}  Bc3 {[%clk 0:01:18]} 29. Bxc3 {[%clk 0:01:31]}  Rxc3 {[%clk 0:01:19]} 30. a5 {[%clk 0:01:29]}  Rc1+ {[%clk 0:01:16]} 31. Kh2 {[%clk 0:01:29]}  Rc5 {[%clk 0:01:17]} 32. Rxc5 {[%clk 0:01:27]}  dxc5 {[%clk 0:01:18]} 33. Kg3 {[%clk 0:01:26]}  e5 {[%clk 0:01:11]} 34. Kf3 {[%clk 0:01:26]}  Kf8 {[%clk 0:01:11]} 35. Ke3 {[%clk 0:01:26]}  Ke7 {[%clk 0:01:12]} 36. Kd3 {[%clk 0:01:26]}  Kd6 {[%clk 0:01:13]} 37. Kc4 {[%clk 0:01:27]}  Kc6 {[%clk 0:01:10]} 38. a6 {[%clk 0:01:27]}  Ra7 {[%clk 0:01:11]} 39. g4 {[%clk 0:01:23]}  g5 {[%clk 0:01:02]} 40. Ra1 {[%clk 0:01:21]}  f6 {[%clk 0:00:57]} 41. f3 {[%clk 0:01:18]}  Kb6 {[%clk 0:00:20]} 42. Rb1+ {[%clk 0:01:16]}  Kc6 {[%clk 0:00:19]} 43. Ra1 {[%clk 0:01:16]}  Kb6 {[%clk 0:00:20]} 44. Kd5 {[%clk 0:01:16]}  c4 {[%clk 0:00:18]} 45. Kxc4 {[%clk 0:01:16]}  Rc7+ {[%clk 0:00:19]} 46. Kd5 {[%clk 0:01:16]}  Ka7 {[%clk 0:00:20]} 47. Ra3 {[%clk 0:01:12]}  h5 {[%clk 0:00:14]} 48. gxh5 {[%clk 0:01:07]}  Rh7 {[%clk 0:00:13]} 49. Ke6 {[%clk 0:01:07]}  Rxh5 {[%clk 0:00:12]} 50. Kxf6 {[%clk 0:01:07]}  Rxh3 {[%clk 0:00:12]} 51. Kxg5 {[%clk 0:01:07]}  Rh1 {[%clk 0:00:09]} 52. Kf6 {[%clk 0:00:55]}  Rh5 {[%clk 0:00:09]} 53. Ke6 {[%clk 0:00:55]}  Rg5 {[%clk 0:00:08]} 54. Kf7 {[%clk 0:00:56]}  Rh5 {[%clk 0:00:07]} 55. Kf6 {[%clk 0:00:56]}  Ka8 {[%clk 0:00:06]} 56. a7 {[%clk 0:00:56]}  Rh6+ {[%clk 0:00:03]} 57. Kxe5 {[%clk 0:00:56]}  Rh3 {[%clk 0:00:03]} 58. Kd4 {[%clk 0:00:51]}  Rh4 {[%clk 0:00:03]} 59. Ke3 {[%clk 0:00:51]}  Rh3 {[%clk 0:00:04]} 60. e5 {[%clk 0:00:51]}  Rh4 {[%clk 0:00:04]} 61. Rd3 {[%clk 0:00:43]}  Kxa7 {[%clk 0:00:04]} 62. f4 {[%clk 0:00:43]}  Kb7 {[%clk 0:00:04]} 63. Ke4 {[%clk 0:00:43]}  Kc7 {[%clk 0:00:04]} 64. e6 {[%clk 0:00:44]}  Rh5 {[%clk 0:00:03]} 65. f5 {[%clk 0:00:44]}  Rh1 {[%clk 0:00:04]} 66. Ke5 {[%clk 0:00:44]}  Re1+ {[%clk 0:00:04]} 67. Kf6 {[%clk 0:00:45]}  Re2 {[%clk 0:00:05]} 68. Kf7 {[%clk 0:00:45]}  Re5 {[%clk 0:00:05]} 69. f6 {[%clk 0:00:45]}  Re4 {[%clk 0:00:04]} 70. e7 {[%clk 0:00:45]} 1-0


[Site "https://www.chess.com"]

[Event "Titled Tuesday Blitz April 18 Early 2023"]
[White "Sadhwani, Raunak"]
[Black "Shuvalova, Polina"]
[WhiteFideId "35093487"]
[BlackFideId "24171760"]
[WhiteElo "2631"]
[BlackElo "2281"]
[Result "1-0"]
[Round "03"]
[TimeControl "180+2"]
[Date "2023.04.18"]
[WhiteClock "0:00:02"]
[BlackClock "0:00:01"]

1. Nf3 {[%clk 0:03:00]}  Nf6 {[%clk 0:02:59]} 2. b3 {[%clk 0:03:01]}  d5 {[%clk 0:02:59]} 3. Bb2 {[%clk 0:03:02]}  e6 {[%clk 0:03:00]} 4. g3 {[%clk 0:03:02]}  Be7 {[%clk 0:02:59]} 5. Bg2 {[%clk 0:03:03]}  O-O {[%clk 0:03:00]} 6. O-O {[%clk 0:03:04]}  c5 {[%clk 0:03:00]} 7. d3 {[%clk 0:03:04]}  b6 {[%clk 0:03:00]} 8. Nbd2 {[%clk 0:03:04]}  Bb7 {[%clk 0:03:00]} 9. Re1 {[%clk 0:03:05]}  Nc6 {[%clk 0:02:59]} 10. e4 {[%clk 0:03:05]}  d4 {[%clk 0:02:57]} 11. Qe2 {[%clk 0:02:41]}  e5 {[%clk 0:02:56]} 12. a4 {[%clk 0:02:36]}  Ne8 {[%clk 0:02:54]} 13. Nc4 {[%clk 0:02:35]}  Bf6 {[%clk 0:02:42]} 14. h4 {[%clk 0:02:16]}  Nd6 {[%clk 0:02:41]} 15. Bc1 {[%clk 0:02:12]}  Bc8 {[%clk 0:02:39]} 16. Nh2 {[%clk 0:02:06]}  Nxc4 {[%clk 0:02:36]} 17. bxc4 {[%clk 0:02:06]}  Bd7 {[%clk 0:02:20]} 18. h5 {[%clk 0:02:05]}  Qc7 {[%clk 0:02:01]} 19. f4 {[%clk 0:02:02]}  exf4 {[%clk 0:01:38]} 20. gxf4 {[%clk 0:02:03]}  Bh4 {[%clk 0:01:34]} 21. Rf1 {[%clk 0:02:03]}  f5 {[%clk 0:01:31]} 22. e5 {[%clk 0:02:02]}  Rae8 {[%clk 0:01:31]} 23. Bd2 {[%clk 0:01:53]}  Nd8 {[%clk 0:01:29]} 24. Bd5+ {[%clk 0:01:47]}  Kh8 {[%clk 0:01:27]} 25. Kh1 {[%clk 0:01:48]}  Ne6 {[%clk 0:01:19]} 26. Rg1 {[%clk 0:01:46]}  Bc6 {[%clk 0:01:17]} 27. Qf3 {[%clk 0:01:46]}  Bd7 {[%clk 0:00:58]} 28. Rg2 {[%clk 0:01:43]}  Qd8 {[%clk 0:00:54]} 29. a5 {[%clk 0:01:42]}  Nc7 {[%clk 0:00:52]} 30. Rag1 {[%clk 0:01:38]}  Be6 {[%clk 0:00:46]} 31. Bc6 {[%clk 0:01:28]}  Re7 {[%clk 0:00:46]} 32. Qh3 {[%clk 0:01:21]}  Ref7 {[%clk 0:00:46]} 33. Nf3 {[%clk 0:01:21]}  Be7 {[%clk 0:00:45]} 34. Rg3 {[%clk 0:01:18]}  Qc8 {[%clk 0:00:34]} 35. Qg2 {[%clk 0:01:15]}  Rg8 {[%clk 0:00:33]} 36. axb6 {[%clk 0:00:45]}  axb6 {[%clk 0:00:33]} 37. Be1 {[%clk 0:00:44]}  Na6 {[%clk 0:00:33]} 38. Bd5 {[%clk 0:00:37]}  Nc7 {[%clk 0:00:33]} 39. Bc6 {[%clk 0:00:35]}  Na6 {[%clk 0:00:33]} 40. Bb5 {[%clk 0:00:36]}  Nc7 {[%clk 0:00:34]} 41. Ba4 {[%clk 0:00:33]}  Qa8 {[%clk 0:00:31]} 42. Bb3 {[%clk 0:00:22]}  Bd7 {[%clk 0:00:31]} 43. Kh2 {[%clk 0:00:21]}  Bc6 {[%clk 0:00:31]} 44. Qh3 {[%clk 0:00:22]}  Ne6 {[%clk 0:00:31]} 45. Bd2 {[%clk 0:00:21]}  Bd8 {[%clk 0:00:27]} 46. Nh4 {[%clk 0:00:18]}  Bxh4 {[%clk 0:00:17]} 47. Qxh4 {[%clk 0:00:19]}  Qb7 {[%clk 0:00:16]} 48. Re1 {[%clk 0:00:15]}  Qe7 {[%clk 0:00:16]} 49. Qxe7 {[%clk 0:00:12]}  Rxe7 {[%clk 0:00:16]} 50. Ra1 {[%clk 0:00:13]}  Rb8 {[%clk 0:00:15]} 51. Ra6 {[%clk 0:00:12]}  Reb7 {[%clk 0:00:15]} 52. Rg1 {[%clk 0:00:10]}  h6 {[%clk 0:00:14]} 53. Rg6 {[%clk 0:00:09]}  Bd7 {[%clk 0:00:13]} 54. Ba4 {[%clk 0:00:09]}  Bxa4 {[%clk 0:00:11]} 55. Rxa4 {[%clk 0:00:10]}  Re7 {[%clk 0:00:11]} 56. Ra6 {[%clk 0:00:10]}  Kg8 {[%clk 0:00:12]} 57. Rg1 {[%clk 0:00:10]}  Kf7 {[%clk 0:00:11]} 58. Rb1 {[%clk 0:00:10]}  Reb7 {[%clk 0:00:10]} 59. Ra2 {[%clk 0:00:09]}  g6 {[%clk 0:00:08]} 60. hxg6+ {[%clk 0:00:08]}  Kxg6 {[%clk 0:00:08]} 61. Rab2 {[%clk 0:00:09]}  h5 {[%clk 0:00:08]} 62. Kg3 {[%clk 0:00:10]}  Kh6 {[%clk 0:00:07]} 63. Kf3 {[%clk 0:00:08]}  Nd8 {[%clk 0:00:04]} 64. Rg1 {[%clk 0:00:04]}  Ne6 {[%clk 0:00:04]} 65. Rgb1 {[%clk 0:00:03]}  Nd8 {[%clk 0:00:04]} 66. Rb5 {[%clk 0:00:04]}  Ne6 {[%clk 0:00:04]} 67. Ba5 {[%clk 0:00:04]}  Rg7 {[%clk 0:00:03]} 68. Rxb6 {[%clk 0:00:04]}  Rxb6 {[%clk 0:00:03]} 69. Rxb6 {[%clk 0:00:05]}  Re7 {[%clk 0:00:04]} 70. Be1 {[%clk 0:00:05]}  Kh7 {[%clk 0:00:04]} 71. Bh4 {[%clk 0:00:04]}  Re8 {[%clk 0:00:04]} 72. Rd6 {[%clk 0:00:04]}  Nf8 {[%clk 0:00:03]} 73. Bg5 {[%clk 0:00:03]}  Ng6 {[%clk 0:00:03]} 74. Kg3 {[%clk 0:00:02]}  Kg7 {[%clk 0:00:03]} 75. e6 {[%clk 0:00:02]}  Kg8 {[%clk 0:00:02]} 76. Rc6 {[%clk 0:00:03]}  Ra8 {[%clk 0:00:01]} 77. Rxc5 {[%clk 0:00:02]}  Kf8 {[%clk 0:00:01]} 78. Rc7 {[%clk 0:00:02]} 1-0


[Site "https://www.chess.com"]

[Event "Titled Tuesday Blitz April 18 Early 2023"]
[White "Demchenko, Anton"]
[Black "Seemann, Jakub"]
[WhiteFideId "4160258"]
[BlackFideId "21874697"]
[WhiteElo "2545"]
[BlackElo "2364"]
[Result "1-0"]
[Round "03"]
[TimeControl "180+2"]
[Date "2023.04.18"]
[WhiteClock "0:00:58"]
[BlackClock "0:01:41"]

1. e4 {[%clk 0:03:00]}  c5 {[%clk 0:02:58]} 2. Nc3 {[%clk 0:02:59]}  d6 {[%clk 0:02:58]} 3. Bb5+ {[%clk 0:02:58]}  Bd7 {[%clk 0:02:58]} 4. a4 {[%clk 0:02:57]}  g6 {[%clk 0:02:56]} 5. f4 {[%clk 0:02:56]}  Bg7 {[%clk 0:02:56]} 6. Nf3 {[%clk 0:02:57]}  Nc6 {[%clk 0:02:55]} 7. O-O {[%clk 0:02:57]}  a6 {[%clk 0:02:50]} 8. Bxc6 {[%clk 0:02:57]}  Bxc6 {[%clk 0:02:51]} 9. a5 {[%clk 0:02:55]}  f5 {[%clk 0:02:51]} 10. Ng5 {[%clk 0:02:10]}  Qd7 {[%clk 0:02:48]} 11. Nd5 {[%clk 0:02:09]}  fxe4 {[%clk 0:02:03]} 12. Nb6 {[%clk 0:02:08]}  Qf5 {[%clk 0:02:03]} 13. Nxa8 {[%clk 0:01:52]}  h6 {[%clk 0:02:00]} 14. Ne6 {[%clk 0:01:52]}  Bf6 {[%clk 0:01:55]} 15. g4 {[%clk 0:01:32]}  Qxe6 {[%clk 0:01:55]} 16. Nc7+ {[%clk 0:01:31]}  Kd7 {[%clk 0:01:56]} 17. Nxe6 {[%clk 0:01:31]}  Kxe6 {[%clk 0:01:56]} 18. c3 {[%clk 0:01:10]}  Kd7 {[%clk 0:01:44]} 19. d3 {[%clk 0:01:02]}  e6 {[%clk 0:01:44]} 20. Be3 {[%clk 0:00:59]}  Ne7 {[%clk 0:01:43]} 21. dxe4 {[%clk 0:00:59]}  Bxe4 {[%clk 0:01:43]} 22. Bxc5 {[%clk 0:00:59]}  Nd5 {[%clk 0:01:43]} 23. Bd4 {[%clk 0:01:00]}  Bh4 {[%clk 0:01:41]} 24. Bxh8 {[%clk 0:00:58]} 1-0


[Site "https://www.chess.com"]

[Event "Titled Tuesday Blitz April 18 Early 2023"]
[White "Kamsky, Gata"]
[Black "Harshad S"]
[WhiteFideId "2000024"]
[BlackFideId "46616551"]
[WhiteElo "2660"]
[BlackElo "2163"]
[Result "1-0"]
[Round "03"]
[TimeControl "180+2"]
[Date "2023.04.18"]
[WhiteClock "0:01:07"]
[BlackClock "0:00:18"]

1. d4 {[%clk 0:03:00]}  Nf6 {[%clk 0:02:59]} 2. Nf3 {[%clk 0:02:55]}  d5 {[%clk 0:02:58]} 3. Bf4 {[%clk 0:02:54]}  c5 {[%clk 0:02:57]} 4. e3 {[%clk 0:02:54]}  Nc6 {[%clk 0:02:56]} 5. c3 {[%clk 0:02:54]}  Qb6 {[%clk 0:02:52]} 6. Qb3 {[%clk 0:02:53]}  c4 {[%clk 0:02:49]} 7. Qc2 {[%clk 0:02:54]}  Bf5 {[%clk 0:02:47]} 8. Qc1 {[%clk 0:02:54]}  Nh5 {[%clk 0:02:40]} 9. Bg3 {[%clk 0:02:53]}  Nxg3 {[%clk 0:02:35]} 10. hxg3 {[%clk 0:02:53]}  h6 {[%clk 0:02:35]} 11. Nbd2 {[%clk 0:02:51]}  e6 {[%clk 0:02:12]} 12. Be2 {[%clk 0:02:47]}  Bd6 {[%clk 0:02:08]} 13. Bd1 {[%clk 0:02:41]}  e5 {[%clk 0:01:53]} 14. dxe5 {[%clk 0:02:39]}  Nxe5 {[%clk 0:01:52]} 15. Nxe5 {[%clk 0:02:39]}  Bxe5 {[%clk 0:01:53]} 16. Nf3 {[%clk 0:02:39]}  Bf6 {[%clk 0:01:50]} 17. Bc2 {[%clk 0:02:38]}  Bxc2 {[%clk 0:01:47]} 18. Qxc2 {[%clk 0:02:38]}  O-O-O {[%clk 0:01:48]} 19. O-O {[%clk 0:02:34]}  Kb8 {[%clk 0:01:46]} 20. Rfd1 {[%clk 0:02:33]}  g6 {[%clk 0:01:36]} 21. Rd2 {[%clk 0:02:32]}  Rd7 {[%clk 0:01:36]} 22. Rad1 {[%clk 0:02:32]}  Rhd8 {[%clk 0:01:35]} 23. Nd4 {[%clk 0:02:26]}  h5 {[%clk 0:01:32]} 24. Ne2 {[%clk 0:02:25]}  Be5 {[%clk 0:01:25]} 25. Nf4 {[%clk 0:02:17]}  Qc6 {[%clk 0:01:20]} 26. Rc1 {[%clk 0:02:12]}  Qf6 {[%clk 0:01:14]} 27. Qd1 {[%clk 0:02:09]}  Qc6 {[%clk 0:01:09]} 28. Qf3 {[%clk 0:02:08]}  Ka8 {[%clk 0:01:02]} 29. Rcd1 {[%clk 0:02:07]}  Bxf4 {[%clk 0:01:03]} 30. gxf4 {[%clk 0:02:03]}  Qe6 {[%clk 0:01:02]} 31. Rd4 {[%clk 0:02:01]}  f5 {[%clk 0:01:02]} 32. b3 {[%clk 0:01:58]}  cxb3 {[%clk 0:01:00]} 33. axb3 {[%clk 0:01:58]}  a6 {[%clk 0:01:01]} 34. Qe2 {[%clk 0:01:47]}  Qc6 {[%clk 0:00:59]} 35. Qd3 {[%clk 0:01:46]}  Rc8 {[%clk 0:00:49]} 36. Rc1 {[%clk 0:01:45]}  Kb8 {[%clk 0:00:32]} 37. Qd2 {[%clk 0:01:44]}  Rcc7 {[%clk 0:00:26]} 38. Rd3 {[%clk 0:01:29]}  Qe6 {[%clk 0:00:23]} 39. Rd1 {[%clk 0:01:28]}  Qb6 {[%clk 0:00:21]} 40. c4 {[%clk 0:01:26]}  Rd6 {[%clk 0:00:14]} 41. cxd5 {[%clk 0:01:23]}  Qb5 {[%clk 0:00:14]} 42. Qb2 {[%clk 0:01:22]}  Ka7 {[%clk 0:00:13]} 43. b4 {[%clk 0:01:19]}  Rcd7 {[%clk 0:00:13]} 44. Qd4+ {[%clk 0:01:18]}  Qb6 {[%clk 0:00:13]} 45. Kh2 {[%clk 0:01:14]}  Qxd4 {[%clk 0:00:13]} 46. Rxd4 {[%clk 0:01:14]}  Kb6 {[%clk 0:00:13]} 47. Kg3 {[%clk 0:01:14]}  Kb5 {[%clk 0:00:14]} 48. Kh4 {[%clk 0:01:13]}  b6 {[%clk 0:00:15]} 49. Kg5 {[%clk 0:01:13]}  a5 {[%clk 0:00:15]} 50. bxa5 {[%clk 0:01:13]}  bxa5 {[%clk 0:00:16]} 51. g3 {[%clk 0:01:11]}  Ka6 {[%clk 0:00:12]} 52. Rc1 {[%clk 0:01:08]}  Kb5 {[%clk 0:00:10]} 53. Rb1+ {[%clk 0:01:06]}  Ka6 {[%clk 0:00:11]} 54. Ra1 {[%clk 0:01:06]}  Rxd5 {[%clk 0:00:10]} 55. Rxd5 {[%clk 0:01:07]}  Rxd5 {[%clk 0:00:11]} 56. Kxg6 {[%clk 0:01:07]}  Rd2 {[%clk 0:00:11]} 57. Kxf5 {[%clk 0:01:07]}  Kb5 {[%clk 0:00:10]} 58. e4 {[%clk 0:01:06]}  a4 {[%clk 0:00:11]} 59. e5 {[%clk 0:01:06]}  Kb4 {[%clk 0:00:11]} 60. e6 {[%clk 0:01:06]}  a3 {[%clk 0:00:11]} 61. e7 {[%clk 0:01:05]}  Re2 {[%clk 0:00:12]} 62. Kf6 {[%clk 0:01:05]}  Kb3 {[%clk 0:00:13]} 63. Kf7 {[%clk 0:01:06]}  Kb2 {[%clk 0:00:12]} 64. Rxa3 {[%clk 0:01:05]}  Kxa3 {[%clk 0:00:13]} 65. e8=Q {[%clk 0:01:05]}  Rxe8 {[%clk 0:00:13]} 66. Kxe8 {[%clk 0:01:06]}  Kb3 {[%clk 0:00:14]} 67. f5 {[%clk 0:01:06]}  Kc3 {[%clk 0:00:15]} 68. f6 {[%clk 0:01:07]}  Kd3 {[%clk 0:00:16]} 69. f7 {[%clk 0:01:07]}  Ke2 {[%clk 0:00:17]} 70. f8=Q {[%clk 0:01:08]}  h4 {[%clk 0:00:18]} 71. gxh4 {[%clk 0:01:07]} 1-0


[Site "https://www.chess.com"]